[Event "*** Titled Tuesday Blitz"]
[Site "Chess.com"]
[Date "2020.05.19"]
[Round "7"]
[White "poummba"]
[Black "Igor_Lysyj"]
[Result "1-0"]
[WhiteElo "2464"]
[BlackElo "2753"]
[TimeControl "180+1"]
[EndTime "13:20:58 PDT"]
[Termination "poummba won by resignation"]

1. e4 {[%clk 0:03:00.9]} 1... e5 {[%clk 0:02:59.4]} 2. Nf3 {[%clk 0:02:59.7]}
2... Nc6 {[%clk 0:02:59.5]} 3. Bc4 {[%clk 0:02:59.8]} 3... Bc5 {[%clk
0:02:58.4]} 4. d3 {[%clk 0:02:57.9]} 4... Nf6 {[%clk 0:02:57.8]} 5. Nc3 {[%clk
0:02:58.6]} 5... d6 {[%clk 0:02:55.5]} 6. Bg5 {[%clk 0:02:58.5]} 6... h6 {[%clk
0:02:53.5]} 7. Bxf6 {[%clk 0:02:58.4]} 7... Qxf6 {[%clk 0:02:52.8]} 8. Nd5
{[%clk 0:02:59.3]} 8... Qd8 {[%clk 0:02:52.7]} 9. c3 {[%clk 0:02:59.7]} 9... a6
{[%clk 0:02:52.7]} 10. d4 {[%clk 0:02:55.3]} 10... Ba7 {[%clk 0:02:52.6]} 11.
dxe5 {[%clk 0:02:50.2]} 11... Nxe5 {[%clk 0:02:51.2]} 12. Nxe5 {[%clk
0:02:50.3]} 12... dxe5 {[%clk 0:02:51.4]} 13. Qh5 {[%clk 0:02:50.5]} 13... O-O
{[%clk 0:02:51.3]} 14. Qxe5 {[%clk 0:02:43.2]} 14... Re8 {[%clk 0:02:46]} 15.
Qf4 {[%clk 0:02:39.9]} 15... Be6 {[%clk 0:02:43.9]} 16. O-O-O {[%clk 0:02:23.8]}
16... c6 {[%clk 0:02:41.6]} 17. Nc7 {[%clk 0:02:20.4]} 17... Qe7 {[%clk
0:02:26.6]} 18. Bxe6 {[%clk 0:02:13.8]} 18... fxe6 {[%clk 0:02:27]} 19. Nxa8
{[%clk 0:02:11.6]} 19... Rxa8 {[%clk 0:02:25.7]} 20. Qd6 {[%clk 0:01:52.2]}
20... Qf7 {[%clk 0:02:23.2]} 21. f3 {[%clk 0:01:48.5]} 21... Re8 {[%clk
0:02:15.7]} 22. Kb1 {[%clk 0:01:40.4]} 22... Kh7 {[%clk 0:02:14.5]} 23. Rd2
{[%clk 0:01:36.9]} 23... Be3 {[%clk 0:02:09]} 24. Rd3 {[%clk 0:01:35]} 24... Bf4
{[%clk 0:02:09.2]} 25. Qd7 {[%clk 0:01:27]} 25... Re7 {[%clk 0:02:09.4]} 26. Qd8
{[%clk 0:01:26.7]} 26... b5 {[%clk 0:02:07.5]} 27. Rhd1 {[%clk 0:01:24.4]} 27...
Bc7 {[%clk 0:01:55.9]} 28. Qc8 {[%clk 0:01:14.2]} 28... Bxh2 {[%clk 0:01:52.6]}
29. Rd7 {[%clk 0:01:07.8]} 29... Rxd7 {[%clk 0:01:51]} 30. Qxd7 {[%clk
0:01:03.3]} 30... Qg6 {[%clk 0:01:43.6]} 31. g4 {[%clk 0:00:47]} 31... Qf6
{[%clk 0:01:37.3]} 32. Rd3 {[%clk 0:00:37.4]} 32... c5 {[%clk 0:01:35.4]} 33.
Qe8 {[%clk 0:00:22.4]} 33... Bc7 {[%clk 0:01:20.4]} 34. a3 {[%clk 0:00:20.1]}
34... b4 {[%clk 0:00:38.9]} 35. axb4 {[%clk 0:00:18.8]} 35... cxb4 {[%clk
0:00:38.7]} 36. Ka2 {[%clk 0:00:12.3]} 36... bxc3 {[%clk 0:00:34.6]} 37. Rxc3
{[%clk 0:00:11.9]} 37... Be5 {[%clk 0:00:34.8]} 38. Rc8 {[%clk 0:00:10.2]} 38...
Bxb2 {[%clk 0:00:28.6]} 39. Qg8+ {[%clk 0:00:08.9]} 39... Kg6 {[%clk 0:00:28.7]}
40. Rc6 {[%clk 0:00:08.7]} 40... Qxf3 {[%clk 0:00:26.2]} 41. Qxe6+ {[%clk
0:00:07.4]} 41... Kg5 {[%clk 0:00:26.4]} 42. Qf5+ {[%clk 0:00:07.3]} 42... Qxf5
{[%clk 0:00:26]} 43. exf5 {[%clk 0:00:08.2]} 43... Kxg4 {[%clk 0:00:24.5]} 44.
Kxb2 {[%clk 0:00:04.9]} 44... Kxf5 {[%clk 0:00:23.6]} 45. Rxa6 {[%clk 0:00:05]}
45... h5 {[%clk 0:00:23.2]} 46. Kc2 {[%clk 0:00:05.9]} 46... h4 {[%clk
0:00:23.6]} 47. Kd2 {[%clk 0:00:06.3]} 47... h3 {[%clk 0:00:23.6]} 48. Ke2
{[%clk 0:00:04.6]} 48... h2 {[%clk 0:00:23.9]} 49. Ra1 {[%clk 0:00:03.8]} 49...
Kg4 {[%clk 0:00:23.8]} 50. Kf2 {[%clk 0:00:03.6]} 50... Kh3 {[%clk 0:00:24]} 51.
Ra3+ {[%clk 0:00:03.6]} 51... Kh4 {[%clk 0:00:24]} 52. Kg2 {[%clk 0:00:03.9]}
1-0

[Event "*** Titled Tuesday Blitz"]
[Site "Chess.com"]
[Date "2020.05.19"]
[Round "7"]
[White "NormWeinstein"]
[Black "EugeneRougon"]
[Result "1-0"]
[WhiteElo "2462"]
[BlackElo "2729"]
[TimeControl "180+1"]
[EndTime "13:20:58 PDT"]
[Termination "NormWeinstein won by resignation"]

1. e4 {[%clk 0:03:00.9]} 1... d6 {[%clk 0:03:00.1]} 2. d4 {[%clk 0:03:00]} 2...
Nf6 {[%clk 0:03:01]} 3. Bd3 {[%clk 0:02:59.8]} 3... Nc6 {[%clk 0:02:55.8]} 4. c3
{[%clk 0:02:57.4]} 4... e5 {[%clk 0:02:55.7]} 5. Nf3 {[%clk 0:02:55.6]} 5... Bg4
{[%clk 0:02:55.2]} 6. d5 {[%clk 0:02:53.9]} 6... Ne7 {[%clk 0:02:54.6]} 7. Nbd2
{[%clk 0:02:52.9]} 7... Ng6 {[%clk 0:02:54.7]} 8. h3 {[%clk 0:02:51.1]} 8... Nf4
{[%clk 0:02:52.2]} 9. Bf1 {[%clk 0:02:44.8]} 9... Bd7 {[%clk 0:02:50.8]} 10. g3
{[%clk 0:02:41.7]} 10... Ng6 {[%clk 0:02:50.7]} 11. Bg2 {[%clk 0:02:36.5]} 11...
Qc8 {[%clk 0:02:51.2]} 12. Qe2 {[%clk 0:02:27]} 12... Be7 {[%clk 0:02:50.9]} 13.
h4 {[%clk 0:02:20]} 13... Bg4 {[%clk 0:02:45.8]} 14. Nf1 {[%clk 0:02:18.6]}
14... O-O {[%clk 0:02:29.4]} 15. Ne3 {[%clk 0:02:14.2]} 15... Bd7 {[%clk
0:02:24.3]} 16. h5 {[%clk 0:02:12.8]} 16... Nh8 {[%clk 0:02:24.1]} 17. h6 {[%clk
0:02:11.2]} 17... g6 {[%clk 0:02:21.5]} 18. Ng5 {[%clk 0:01:47.2]} 18... c6
{[%clk 0:02:10.2]} 19. c4 {[%clk 0:01:38.4]} 19... Qd8 {[%clk 0:01:53.4]} 20.
Nh3 {[%clk 0:01:23.1]} 20... cxd5 {[%clk 0:01:13.7]} 21. cxd5 {[%clk 0:01:22.2]}
21... Qb6 {[%clk 0:01:03.4]} 22. Nc4 {[%clk 0:00:57.1]} 22... Qa6 {[%clk
0:00:57.9]} 23. O-O {[%clk 0:00:46.3]} 23... Rac8 {[%clk 0:00:48.1]} 24. b3
{[%clk 0:00:45.7]} 24... b5 {[%clk 0:00:18]} 25. Ne3 {[%clk 0:00:40.1]} 25...
Ne8 {[%clk 0:00:17.6]} 26. Bd2 {[%clk 0:00:36.8]} 26... f5 {[%clk 0:00:16.3]}
27. exf5 {[%clk 0:00:36.6]} 27... gxf5 {[%clk 0:00:17.2]} 28. Qh5 {[%clk
0:00:32.9]} 28... Nf6 {[%clk 0:00:13.5]} 29. Qg5+ {[%clk 0:00:32.8]} 29... Ng6
{[%clk 0:00:13.8]} 30. Nxf5 {[%clk 0:00:30.4]} 30... Bxf5 {[%clk 0:00:13.6]} 31.
Qxf5 {[%clk 0:00:30.2]} 31... Kh8 {[%clk 0:00:13]} 32. Qe6 {[%clk 0:00:27.9]}
32... Rce8 {[%clk 0:00:10.5]} 33. Ng5 {[%clk 0:00:27.6]} 33... Bd8 {[%clk
0:00:09.3]} 34. Nf7+ {[%clk 0:00:26.9]} 34... Kg8 {[%clk 0:00:09.6]} 35. Nxd8+
{[%clk 0:00:25.1]} 35... Rxe6 {[%clk 0:00:09.4]} 36. Nxe6 {[%clk 0:00:25.5]}
36... Re8 {[%clk 0:00:09.6]} 37. Rac1 {[%clk 0:00:24.9]} 37... Qxa2 {[%clk
0:00:08.9]} 38. Be3 {[%clk 0:00:25]} 38... Qxb3 {[%clk 0:00:08.8]} 39. Rc7
{[%clk 0:00:24.7]} 39... Nxd5 {[%clk 0:00:09.1]} 40. Rg7+ {[%clk 0:00:19.8]}
40... Kh8 {[%clk 0:00:09.1]} 41. Ng5 {[%clk 0:00:20.3]} 41... Nf6 {[%clk
0:00:09]} 42. Nf7+ {[%clk 0:00:19.8]} 42... Qxf7 {[%clk 0:00:09.5]} 43. Rxf7
{[%clk 0:00:19.8]} 43... Ng4 {[%clk 0:00:10.4]} 44. Rd1 {[%clk 0:00:18.6]} 44...
Rd8 {[%clk 0:00:09.4]} 45. Bg5 {[%clk 0:00:17]} 45... Rf8 {[%clk 0:00:08.8]} 46.
Rxf8+ {[%clk 0:00:16.2]} 46... Nxf8 {[%clk 0:00:09.7]} 47. Rxd6 {[%clk
0:00:15.8]} 47... Kg8 {[%clk 0:00:10.6]} 48. Bh3 {[%clk 0:00:14.6]} 48... Kf7
{[%clk 0:00:09.1]} 49. Bxg4 {[%clk 0:00:13.8]} 49... Ng6 {[%clk 0:00:10]} 50.
Bf5 {[%clk 0:00:12.7]} 50... Ke8 {[%clk 0:00:10.9]} 51. Bxg6+ {[%clk 0:00:12.3]}
51... hxg6 {[%clk 0:00:11.8]} 52. Rxg6 {[%clk 0:00:11.5]} 1-0

[Event "*** Titled Tuesday Blitz"]
[Site "Chess.com"]
[Date "2020.05.19"]
[Round "7"]
[White "Jumbo"]
[Black "Spartakus1975"]
[Result "1-0"]
[WhiteElo "2868"]
[BlackElo "2687"]
[TimeControl "180+1"]
[EndTime "13:20:59 PDT"]
[Termination "Jumbo won on time"]

1. d4 {[%clk 0:03:00.9]} 1... d5 {[%clk 0:02:58.9]} 2. Bf4 {[%clk 0:03:01.4]}
2... c5 {[%clk 0:02:57.1]} 3. e3 {[%clk 0:03:01.6]} 3... Nc6 {[%clk 0:02:55.1]}
4. c3 {[%clk 0:03:02]} 4... Nf6 {[%clk 0:02:54.6]} 5. Nf3 {[%clk 0:03:01.8]}
5... Bg4 {[%clk 0:02:54.3]} 6. Qb3 {[%clk 0:02:56.9]} 6... Qc8 {[%clk
0:02:36.8]} 7. Ne5 {[%clk 0:02:50.6]} 7... Bf5 {[%clk 0:02:35.3]} 8. Qa4 {[%clk
0:02:37.7]} 8... a6 {[%clk 0:02:19.2]} 9. dxc5 {[%clk 0:02:31]} 9... Nd7 {[%clk
0:02:06.6]} 10. b4 {[%clk 0:01:55.5]} 10... g5 {[%clk 0:01:25.6]} 11. Nxc6
{[%clk 0:01:25.8]} 11... bxc6 {[%clk 0:01:25.4]} 12. Bxg5 {[%clk 0:01:25.5]}
12... a5 {[%clk 0:01:25.7]} 13. b5 {[%clk 0:01:20]} 13... Bg7 {[%clk 0:01:11]}
14. Qa3 {[%clk 0:01:07.2]} 14... O-O {[%clk 0:00:56.2]} 15. b6 {[%clk
0:00:58.3]} 15... Ne5 {[%clk 0:00:41.6]} 16. Nd2 {[%clk 0:00:54]} 16... Ng6
{[%clk 0:00:36.2]} 17. h4 {[%clk 0:00:41.6]} 17... f6 {[%clk 0:00:33.2]} 18. Bf4
{[%clk 0:00:33.3]} 18... Nxf4 {[%clk 0:00:30.1]} 19. exf4 {[%clk 0:00:34.2]}
19... e5 {[%clk 0:00:30.4]} 20. Nf3 {[%clk 0:00:28.5]} 20... Be4 {[%clk
0:00:25.5]} 21. Be2 {[%clk 0:00:27.7]} 21... Qg4 {[%clk 0:00:22.2]} 22. O-O-O
{[%clk 0:00:13.6]} 22... Qxf4+ {[%clk 0:00:21.3]} 23. Kb2 {[%clk 0:00:13.9]}
23... Bg6 {[%clk 0:00:15.9]} 24. Ka1 {[%clk 0:00:12.7]} 24... f5 {[%clk
0:00:10.1]} 25. h5 {[%clk 0:00:12.8]} 25... Bf7 {[%clk 0:00:09.4]} 26. h6 {[%clk
0:00:12.6]} 26... Bf6 {[%clk 0:00:09]} 27. Rh3 {[%clk 0:00:12.7]} 27... d4
{[%clk 0:00:08.2]} 28. cxd4 {[%clk 0:00:11.6]} 28... e4 {[%clk 0:00:08.1]} 29.
Ne5 {[%clk 0:00:10.9]} 29... Bxe5 {[%clk 0:00:07.7]} 30. dxe5 {[%clk 0:00:11.8]}
30... Qxf2 {[%clk 0:00:05.8]} 31. Qe3 {[%clk 0:00:11.2]} 31... Qxe3 {[%clk
0:00:04.7]} 32. Rxe3 {[%clk 0:00:11.1]} 32... Bg6 {[%clk 0:00:05.1]} 33. g3
{[%clk 0:00:10.5]} 33... Rfe8 {[%clk 0:00:05.1]} 34. e6 {[%clk 0:00:09]} 34...
Kf8 {[%clk 0:00:04]} 35. Bc4 {[%clk 0:00:08.7]} 35... Rad8 {[%clk 0:00:02.8]}
36. Rxd8 {[%clk 0:00:04.1]} 36... Rxd8 {[%clk 0:00:02.5]} 37. Kb2 {[%clk
0:00:04.7]} 37... Ke7 {[%clk 0:00:02.9]} 38. Kc3 {[%clk 0:00:05.1]} 38... Rd1
{[%clk 0:00:02.9]} 39. Re2 {[%clk 0:00:05.2]} 39... Rd8 {[%clk 0:00:02]} 40. Rd2
{[%clk 0:00:05]} 40... Rxd2 {[%clk 0:00:02]} 41. Kxd2 {[%clk 0:00:05.9]} 41...
Bh5 {[%clk 0:00:01.9]} 42. Ke3 {[%clk 0:00:06.3]} 1-0

[Event "*** Titled Tuesday Blitz"]
[Site "Chess.com"]
[Date "2020.05.19"]
[Round "7"]
[White "Grandmaster2B"]
[Black "Stormeman100100"]
[Result "1-0"]
[WhiteElo "2414"]
[BlackElo "2530"]
[TimeControl "180+1"]
[EndTime "13:20:59 PDT"]
[Termination "Grandmaster2B won by resignation"]

1. e4 {[%clk 0:03:00.9]} 1... c5 {[%clk 0:02:58.4]} 2. Nf3 {[%clk 0:03:01.2]}
2... d6 {[%clk 0:02:58.1]} 3. d4 {[%clk 0:03:01.8]} 3... cxd4 {[%clk 0:02:59]}
4. Nxd4 {[%clk 0:03:02.7]} 4... Nf6 {[%clk 0:02:59.6]} 5. Nc3 {[%clk 0:03:01.9]}
5... Nc6 {[%clk 0:03:00.1]} 6. f3 {[%clk 0:02:59.5]} 6... e5 {[%clk 0:02:57.7]}
7. Nb3 {[%clk 0:02:58.5]} 7... Be7 {[%clk 0:02:52.7]} 8. Be3 {[%clk 0:02:55.7]}
8... Be6 {[%clk 0:02:50.9]} 9. Nd5 {[%clk 0:02:54.2]} 9... O-O {[%clk
0:02:47.8]} 10. Be2 {[%clk 0:02:49.3]} 10... a5 {[%clk 0:02:46.6]} 11. O-O
{[%clk 0:02:45.5]} 11... a4 {[%clk 0:02:45.9]} 12. Nc1 {[%clk 0:02:30.2]} 12...
Bxd5 {[%clk 0:02:37.3]} 13. exd5 {[%clk 0:02:31.1]} 13... Nb4 {[%clk 0:02:37.1]}
14. c4 {[%clk 0:02:28]} 14... a3 {[%clk 0:02:36.4]} 15. Qb3 {[%clk 0:02:24.4]}
15... axb2 {[%clk 0:02:34.3]} 16. Qxb2 {[%clk 0:02:25.3]} 16... Qa5 {[%clk
0:02:29.5]} 17. Rb1 {[%clk 0:02:15]} 17... Nxa2 {[%clk 0:02:18.9]} 18. Qxb7
{[%clk 0:02:06.4]} 18... Nc3 {[%clk 0:02:12.3]} 19. Rb2 {[%clk 0:01:53.4]} 19...
Rfe8 {[%clk 0:01:29.8]} 20. Qb4 {[%clk 0:01:33.1]} 20... Qxb4 {[%clk 0:01:19.1]}
21. Rxb4 {[%clk 0:01:31.6]} 21... Bd8 {[%clk 0:01:11.6]} 22. Bd3 {[%clk
0:01:25.7]} 22... Ncxd5 {[%clk 0:01:10.1]} 23. cxd5 {[%clk 0:01:21]} 23... Nxd5
{[%clk 0:01:10]} 24. Be4 {[%clk 0:01:17.6]} 24... Nxe3 {[%clk 0:00:56.4]} 25.
Bxa8 {[%clk 0:01:15.4]} 25... Nxf1 {[%clk 0:00:56.3]} 26. Kxf1 {[%clk
0:01:16.3]} 26... Ba5 {[%clk 0:00:56.5]} 27. Bc6 {[%clk 0:00:58.2]} 27... Bxb4
{[%clk 0:00:52.6]} 28. Bxe8 {[%clk 0:00:57.6]} 28... Kf8 {[%clk 0:00:53.1]} 29.
Bc6 {[%clk 0:00:57.6]} 29... Ke7 {[%clk 0:00:52.8]} 30. Nd3 {[%clk 0:00:57.6]}
30... Bc3 {[%clk 0:00:51.9]} 31. Bd5 {[%clk 0:00:57.2]} 31... f5 {[%clk
0:00:51.7]} 32. Ke2 {[%clk 0:00:57.7]} 32... g5 {[%clk 0:00:48.7]} 33. Bg8
{[%clk 0:00:56.5]} 33... h5 {[%clk 0:00:47.6]} 34. Nf2 {[%clk 0:00:52.5]} 34...
Kf6 {[%clk 0:00:45.7]} 35. Nd1 {[%clk 0:00:52.5]} 35... Bd4 {[%clk 0:00:45.5]}
36. Ne3 {[%clk 0:00:52.9]} 36... g4 {[%clk 0:00:42.8]} 37. Bh7 {[%clk
0:00:45.3]} 37... f4 {[%clk 0:00:42.9]} 38. Nd5+ {[%clk 0:00:43.1]} 38... Kg5
{[%clk 0:00:43]} 39. Be4 {[%clk 0:00:35.2]} 39... g3 {[%clk 0:00:37.1]} 40. h3
{[%clk 0:00:33.7]} 40... Kh6 {[%clk 0:00:32.8]} 41. Kd3 {[%clk 0:00:33.1]} 41...
Kg7 {[%clk 0:00:31]} 42. Nxf4 {[%clk 0:00:32.4]} 42... Bf2 {[%clk 0:00:25.8]}
43. Nxh5+ {[%clk 0:00:24.6]} 43... Kf7 {[%clk 0:00:24.5]} 44. Kc4 {[%clk
0:00:18.6]} 44... Ke6 {[%clk 0:00:21]} 45. Ng7+ {[%clk 0:00:18.1]} 45... Kf6
{[%clk 0:00:20.9]} 46. Nf5 {[%clk 0:00:18.4]} 46... Ke6 {[%clk 0:00:11.3]} 47.
Ng7+ {[%clk 0:00:18.4]} 47... Kf6 {[%clk 0:00:11.3]} 48. Ne8+ {[%clk 0:00:18.8]}
48... Ke7 {[%clk 0:00:11.4]} 49. Nc7 {[%clk 0:00:18.9]} 49... Kd7 {[%clk
0:00:10.4]} 50. Nd5 {[%clk 0:00:18.9]} 50... Ke6 {[%clk 0:00:10.7]} 51. h4
{[%clk 0:00:19.4]} 51... Be1 {[%clk 0:00:09.5]} 52. h5 {[%clk 0:00:18.4]} 52...
Bd2 {[%clk 0:00:10]} 53. Kd3 {[%clk 0:00:17.9]} 53... Bh6 {[%clk 0:00:10]} 54.
Ne3 {[%clk 0:00:18]} 54... Ke7 {[%clk 0:00:09.1]} 55. Nf5+ {[%clk 0:00:18.3]}
1-0

[Event "*** Titled Tuesday Blitz"]
[Site "Chess.com"]
[Date "2020.05.19"]
[Round "7"]
[White "Chessialist"]
[Black "maciek_92"]
[Result "0-1"]
[WhiteElo "2557"]
[BlackElo "2733"]
[TimeControl "180+1"]
[EndTime "13:21:01 PDT"]
[Termination "maciek_92 won by resignation"]

1. e4 {[%clk 0:03:00.9]} 1... c5 {[%clk 0:02:59.6]} 2. Nf3 {[%clk 0:03:01.1]}
2... e6 {[%clk 0:02:55.7]} 3. b3 {[%clk 0:02:59.8]} 3... Nc6 {[%clk 0:02:54.7]}
4. Bb5 {[%clk 0:02:58.9]} 4... Qb6 {[%clk 0:02:48.6]} 5. Nc3 {[%clk 0:02:55.4]}
5... Nd4 {[%clk 0:02:47.6]} 6. Bd3 {[%clk 0:02:53.8]} 6... Ne7 {[%clk
0:02:25.5]} 7. Nxd4 {[%clk 0:02:51.7]} 7... cxd4 {[%clk 0:02:24.9]} 8. Ne2
{[%clk 0:02:52.6]} 8... Nc6 {[%clk 0:02:19.9]} 9. O-O {[%clk 0:02:52.1]} 9...
Ne5 {[%clk 0:02:10.2]} 10. Bb2 {[%clk 0:02:45.3]} 10... Bc5 {[%clk 0:02:10.6]}
11. f4 {[%clk 0:02:42.9]} 11... Nxd3 {[%clk 0:02:10.3]} 12. cxd3 {[%clk
0:02:43.8]} 12... d6 {[%clk 0:02:05.2]} 13. Rc1 {[%clk 0:02:42.7]} 13... e5
{[%clk 0:01:59.6]} 14. Ng3 {[%clk 0:02:39.8]} 14... g6 {[%clk 0:01:18.6]} 15.
Qf3 {[%clk 0:02:24.2]} 15... O-O {[%clk 0:01:04.4]} 16. f5 {[%clk 0:02:24.1]}
16... f6 {[%clk 0:01:00.3]} 17. h4 {[%clk 0:02:16.6]} 17... Bd7 {[%clk
0:00:48.3]} 18. fxg6 {[%clk 0:02:15.5]} 18... hxg6 {[%clk 0:00:49.2]} 19. h5
{[%clk 0:02:16.2]} 19... g5 {[%clk 0:00:42.2]} 20. Nf5 {[%clk 0:02:15.1]} 20...
Kh7 {[%clk 0:00:37.1]} 21. Ne7 {[%clk 0:01:58.4]} 21... Be6 {[%clk 0:00:35.1]}
22. Nd5 {[%clk 0:01:56.6]} 22... Bxd5 {[%clk 0:00:33.6]} 23. Qf5+ {[%clk
0:01:53]} 23... Kh8 {[%clk 0:00:33.5]} 24. exd5 {[%clk 0:01:53.1]} 24... Qd8
{[%clk 0:00:30.5]} 25. g4 {[%clk 0:01:50]} 25... a5 {[%clk 0:00:28.9]} 26. a4
{[%clk 0:01:32.6]} 26... Qe7 {[%clk 0:00:26.6]} 27. Kg2 {[%clk 0:01:27.2]} 27...
Qf7 {[%clk 0:00:26.3]} 28. Qe4 {[%clk 0:01:20.3]} 28... Qh7 {[%clk 0:00:26.8]}
29. Rf5 {[%clk 0:01:19.4]} 29... Kg7 {[%clk 0:00:20.3]} 30. Rcf1 {[%clk
0:01:18.9]} 30... Qh6 {[%clk 0:00:20.5]} 31. Qe2 {[%clk 0:01:10.4]} 31... b5
{[%clk 0:00:20.1]} 32. axb5 {[%clk 0:01:01.2]} 32... Rab8 {[%clk 0:00:20]} 33.
Ra1 {[%clk 0:00:44.4]} 33... Rxb5 {[%clk 0:00:19.1]} 34. Ba3 {[%clk 0:00:45]}
34... Bxa3 {[%clk 0:00:17.2]} 35. Rxa3 {[%clk 0:00:45.6]} 35... Rc8 {[%clk
0:00:17]} 36. b4 {[%clk 0:00:43.1]} 36... axb4 {[%clk 0:00:11.6]} 37. Ra7+
{[%clk 0:00:42.8]} 37... Kh8 {[%clk 0:00:11.6]} 38. Rf7 {[%clk 0:00:39.1]} 38...
Rf8 {[%clk 0:00:12]} 39. Rd7 {[%clk 0:00:34]} 39... b3 {[%clk 0:00:11.6]} 40.
Qd1 {[%clk 0:00:34]} 40... b2 {[%clk 0:00:12.1]} 41. Qb1 {[%clk 0:00:34.6]}
41... Rc8 {[%clk 0:00:11.7]} 42. Rxd6 {[%clk 0:00:31.6]} 42... Rc1 {[%clk
0:00:09]} 43. Qa2 {[%clk 0:00:25.5]} 43... b1=Q {[%clk 0:00:09]} 44. Rd8+ {[%clk
0:00:21.2]} 44... Kh7 {[%clk 0:00:09.1]} 45. Qa7+ {[%clk 0:00:21.6]} 45... Rb7
{[%clk 0:00:09.2]} 46. Rd7+ {[%clk 0:00:21.8]} 46... Rxd7 {[%clk 0:00:08.1]} 47.
Qxd7+ {[%clk 0:00:22.7]} 47... Qg7 {[%clk 0:00:08.8]} 0-1

[Event "*** Titled Tuesday Blitz"]
[Site "Chess.com"]
[Date "2020.05.19"]
[Round "7"]
[White "Mizner"]
[Black "djamir"]
[Result "0-1"]
[WhiteElo "2548"]
[BlackElo "2720"]
[TimeControl "180+1"]
[EndTime "13:21:01 PDT"]
[Termination "djamir won on time"]

1. d4 {[%clk 0:03:00.9]} 1... Nf6 {[%clk 0:02:59.3]} 2. c4 {[%clk 0:03:01.2]}
2... e6 {[%clk 0:02:59.3]} 3. Nc3 {[%clk 0:03:00.9]} 3... Bb4 {[%clk 0:02:59.4]}
4. Qc2 {[%clk 0:03:01.4]} 4... O-O {[%clk 0:02:58]} 5. Nf3 {[%clk 0:03:01.5]}
5... Bxc3+ {[%clk 0:02:49.9]} 6. Qxc3 {[%clk 0:03:01.3]} 6... b6 {[%clk
0:02:50.5]} 7. e3 {[%clk 0:02:59]} 7... Bb7 {[%clk 0:02:50.9]} 8. Be2 {[%clk
0:02:59.1]} 8... d6 {[%clk 0:02:51.7]} 9. O-O {[%clk 0:02:59.1]} 9... Nbd7
{[%clk 0:02:52.6]} 10. b4 {[%clk 0:02:58.1]} 10... Qe7 {[%clk 0:02:52.9]} 11.
Bb2 {[%clk 0:02:57.7]} 11... c5 {[%clk 0:02:51.5]} 12. a3 {[%clk 0:02:55]} 12...
Rfd8 {[%clk 0:02:51.2]} 13. Rac1 {[%clk 0:02:46.7]} 13... Rac8 {[%clk 0:02:51]}
14. Qb3 {[%clk 0:02:42.7]} 14... Nf8 {[%clk 0:02:44]} 15. Rfd1 {[%clk
0:02:41.7]} 15... Ng6 {[%clk 0:02:36.7]} 16. a4 {[%clk 0:02:00]} 16... cxb4
{[%clk 0:02:07.3]} 17. Qxb4 {[%clk 0:01:59.5]} 17... Ba8 {[%clk 0:02:07.7]} 18.
Ba3 {[%clk 0:01:47.5]} 18... Qb7 {[%clk 0:02:00.8]} 19. a5 {[%clk 0:01:44.4]}
19... Ne4 {[%clk 0:01:42.3]} 20. Rb1 {[%clk 0:01:34.4]} 20... Rb8 {[%clk
0:01:41.3]} 21. axb6 {[%clk 0:01:20.2]} 21... axb6 {[%clk 0:01:42.2]} 22. Rb3
{[%clk 0:01:08.4]} 22... Qe7 {[%clk 0:01:39]} 23. Rdb1 {[%clk 0:01:06.9]} 23...
Ng5 {[%clk 0:01:31.6]} 24. Ne1 {[%clk 0:00:53.6]} 24... Nh4 {[%clk 0:01:26.2]}
25. Qa4 {[%clk 0:00:43.5]} 25... Be4 {[%clk 0:01:10.9]} 26. R1b2 {[%clk
0:00:34.4]} 26... b5 {[%clk 0:00:52.3]} 27. cxb5 {[%clk 0:00:26]} 27... Ra8
{[%clk 0:00:46.9]} 28. Qb4 {[%clk 0:00:25.1]} 28... Bd5 {[%clk 0:00:31.9]} 29.
Rc3 {[%clk 0:00:25.2]} 29... Qf6 {[%clk 0:00:18.3]} 30. f3 {[%clk 0:00:22.8]}
30... e5 {[%clk 0:00:18.3]} 31. Rd2 {[%clk 0:00:16.5]} 31... e4 {[%clk 0:00:17]}
32. f4 {[%clk 0:00:15.8]} 32... Nh3+ {[%clk 0:00:14.5]} 33. gxh3 {[%clk
0:00:14]} 33... Qg6+ {[%clk 0:00:14.9]} 34. Kf1 {[%clk 0:00:12.8]} 34... Nf3
{[%clk 0:00:13.8]} 35. Bxf3 {[%clk 0:00:10.5]} 35... exf3 {[%clk 0:00:14.7]} 36.
b6 {[%clk 0:00:04.2]} 36... Rab8 {[%clk 0:00:12.8]} 37. Rf2 {[%clk 0:00:03.4]}
37... Be4 {[%clk 0:00:12.7]} 38. Nxf3 {[%clk 0:00:03.1]} 38... Qh5 {[%clk
0:00:10.3]} 39. Ke2 {[%clk 0:00:02.6]} 39... h6 {[%clk 0:00:09.7]} 40. Bb2
{[%clk 0:00:02.1]} 40... Qxh3 {[%clk 0:00:08.6]} 41. Ra3 {[%clk 0:00:02]} 41...
Qh5 {[%clk 0:00:08.6]} 42. Ra5 {[%clk 0:00:02]} 42... d5 {[%clk 0:00:07.2]} 43.
Ra1 {[%clk 0:00:01.1]} 43... Rdc8 {[%clk 0:00:07.5]} 0-1